bitfinex/quotes_BTCUSD_20250709
["timestamp","ask_amount","ask_price","bid_price","bid_amount"]
[1752062843116,0.3327358,109200.0,109190.0,0.2511989]
[1752062843324,0.34189314,109200.0,109190.0,0.2511989]
[1752062843944,0.35111075,109200.0,109190.0,0.2511989]
[1752062844146,0.04884578,109200.0,109190.0,0.2511989]
[1752062844353,0.35111075,109200.0,109190.0,0.2511989]
[1752062844559,0.34189314,109200.0,109190.0,0.2511989]
[1752062847737,0.35105056,109200.0,109190.0,0.2511989]
[1752062848794,0.34189314,109200.0,109190.0,0.2511989]
[1752062849233,0.003,109200.0,109190.0,0.55346387]
[1752062849488,0.01215683,109200.0,109190.0,0.2511989]
[1752062850763,0.00915683,109200.0,109190.0,0.2511989]
[1752062852191,9.08e-05,109230.0,109220.0,0.21551664]
[1752062852400,0.00929154,109230.0,109220.0,0.54445038]
[1752062852606,0.30240228,109230.0,109220.0,0.52198311]
[1752062853446,0.00013731,109230.0,109220.0,0.52198311]
[1752062853650,0.00013731,109230.0,109220.0,0.82424808]
[1752062854085,0.00413731,109230.0,109220.0,0.52198311]
[1752062854282,0.00413731,109230.0,109220.0,0.82424808]
[1752062854450,0.00413731,109230.0,109220.0,1.12651305]
[1752062854658,0.00413731,109230.0,109220.0,0.91568501]
[1752062854867,0.00413731,109230.0,109220.0,1.21794998]
[1752062855081,0.00013731,109230.0,109220.0,1.21794998]
[1752062855296,0.00113731,109230.0,109220.0,0.61342004]
[1752062855516,0.00113731,109230.0,109220.0,0.91568501]
[1752062855928,0.00113731,109230.0,109220.0,0.9566927]
[1752062856968,0.00113731,109230.0,109220.0,1.25895767]
[1752062857275,0.00013731,109230.0,109220.0,0.65442773]
[1752062857514,0.00013731,109230.0,109220.0,0.9566927]
[1752062859352,0.00013731,109230.0,109220.0,0.91568501]
[1752062859800,0.00013731,109230.0,109220.0,0.95664444]
[1752062860066,0.00013731,109230.0,109220.0,0.99760386]
[1752062860299,0.00013731,109230.0,109220.0,0.99760387]
[1752062860756,0.00013731,109230.0,109220.0,0.95664444]
[1752062861415,0.00013731,109230.0,109220.0,0.99760234]
[1752062861632,0.00013731,109230.0,109220.0,0.95664444]
[1752062861842,0.00013731,109230.0,109220.0,0.9976033]
[1752062862484,0.00013731,109230.0,109220.0,0.69533833]
[1752062862705,0.00013731,109230.0,109220.0,0.9976033]
[1752062862918,0.00013731,109230.0,109220.0,0.69533833]
[1752062863133,0.00013731,109230.0,109220.0,1.29986827]
[1752062867680,0.00013731,109230.0,109220.0,1.35447881]
[1752062869445,0.00013731,109230.0,109220.0,1.35647881]
[1752062869669,0.00013731,109230.0,109220.0,1.35747881]
[1752062872243,0.00013731,109230.0,109220.0,1.31651995]
[1752062877368,0.00013731,109230.0,109220.0,1.39843576]
[1752062879507,0.00013731,109230.0,109220.0,1.34382522]
[1752062881442,0.00013731,109230.0,109220.0,1.26190941]
[1752062882477,0.00013731,109230.0,109220.0,1.3715949]
[1752062883307,0.00013731,109230.0,109220.0,0.76706496]
[1752062883511,0.00013731,109230.0,109220.0,1.3715949]
[1752062884765,0.00013731,109230.0,109220.0,0.76706496]
[1752062884972,0.00013731,109230.0,109220.0,1.3715949]
[1752062890787,0.00013731,109230.0,109220.0,0.76706496]
[1752062891212,0.00013731,109230.0,109220.0,1.3715949]
[1752062903199,0.00013731,109230.0,109220.0,0.76706496]
[1752062903408,0.00013731,109230.0,109220.0,1.3715949]
[1752062904042,0.00013731,109230.0,109220.0,0.76706496]
[1752062904321,0.00013731,109230.0,109220.0,1.3715949]
[1752062905870,0.00013731,109230.0,109220.0,0.76706496]
[1752062906083,0.00013731,109230.0,109220.0,1.3715949]
[1752062906533,0.00013731,109230.0,109220.0,1.06932993]
[1752062906769,0.00013731,109230.0,109220.0,0.76706496]
[1752062906973,0.00013731,109230.0,109220.0,1.06932993]
[1752062908075,0.00013731,109230.0,109220.0,1.3715949]
[1752062909377,0.00013731,109230.0,109220.0,0.76706496]
[1752062909600,0.00013731,109230.0,109220.0,1.06932993]
[1752062910027,0.00013731,109230.0,109220.0,1.3715949]
[1752062910689,0.00013731,109230.0,109220.0,0.76706496]
[1752062910926,0.00013731,109230.0,109220.0,1.3715949]
[1752062912193,0.00013731,109230.0,109220.0,0.76706496]
[1752062912406,0.00013731,109230.0,109220.0,1.3715949]
[1752062913710,0.00013731,109230.0,109220.0,0.76706496]
[1752062913913,0.00013731,109230.0,109220.0,1.3715949]
[1752062914950,0.00013731,109230.0,109220.0,0.76706496]
[1752062915159,0.00013731,109230.0,109220.0,1.3715949]
[1752062915364,0.00013731,109230.0,109220.0,0.76706496]
[1752062915574,0.00013731,109230.0,109220.0,1.3715949]
[1752062920598,0.00013731,109230.0,109220.0,1.26190941]
[1752062922052,0.00013731,109230.0,109220.0,1.3991029]
[1752062924863,0.00013731,109230.0,109220.0,0.79457296]
[1752062925128,0.00013731,109230.0,109220.0,1.3991029]
[1752062927291,0.00013731,109230.0,109220.0,1.40553402]
[1752062928571,0.00013731,109230.0,109220.0,0.80100408]
[1752062928855,0.00013731,109230.0,109220.0,1.40553402]
[1752062930564,0.00013731,109230.0,109220.0,0.80100408]
[1752062930795,0.00013731,109230.0,109220.0,1.40553402]
[1752062933172,0.00013731,109230.0,109220.0,1.40553276]
[1752062935391,0.00013731,109230.0,109220.0,1.4055321]
[1752062939077,0.00013731,109230.0,109220.0,0.80100216]
[1752062939303,0.00013731,109230.0,109220.0,1.4055321]
[1752062940581,0.00013731,109230.0,109220.0,0.80100216]
[1752062941047,0.00013731,109230.0,109220.0,1.4055321]
[1752062941938,0.00013731,109230.0,109220.0,1.3991029]
[1752062942812,0.00013731,109230.0,109220.0,0.79457296]
[1752062943029,0.00013731,109230.0,109220.0,1.3991029]
[1752062948124,0.00013731,109230.0,109220.0,0.79457296]
[1752062948330,0.00013731,109230.0,109220.0,1.3991029]
[1752062951463,0.00013731,109230.0,109220.0,1.28941741]
[1752062952101,0.00013731,109230.0,109220.0,1.29585096]
[1752062953366,0.95,109240.0,109230.0,0.24066384]
[1752062953595,0.95,109240.0,109230.0,1.05288619]
[1752062954844,0.95,109240.0,109230.0,1.15284957]
[1752062955464,0.95,109240.0,109230.0,1.15284819]
[1752062955676,0.95,109240.0,109230.0,1.15384819]
[1752062957034,0.95,109240.0,109230.0,1.15484819]
[1752062957238,0.95,109240.0,109230.0,1.16402361]
[1752062957446,0.95,109240.0,109230.0,1.16702361]
[1752062958294,0.95,109240.0,109230.0,1.16701697]
[1752062961284,0.95,109240.0,109230.0,1.16701466]
[1752062963925,0.95,109240.0,109230.0,0.86474591]
[1752062964121,0.95,109240.0,109230.0,1.16701088]
[1752062965321,0.95,109240.0,109230.0,1.19451488]
[1752062966554,0.95,109240.0,109230.0,0.89224991]
[1752062966966,0.95,109240.0,109230.0,1.19451488]
[1752062967183,1.95,109240.0,109230.0,1.19451488]
[1752062969792,1.95,109240.0,109230.0,1.1945122]
[1752062970624,1.95,109240.0,109230.0,1.19451072]
[1752062972011,1.95,109240.0,109230.0,0.89224575]
[1752062972390,1.95,109240.0,109230.0,1.19451072]
[1752062973640,1.94083805,109240.0,109230.0,1.49677569]
[1752062973880,1.94083805,109240.0,109230.0,1.38693122]
[1752062974288,1.9316761,109240.0,109230.0,1.38693122]
[1752062974489,1.9316761,109240.0,109230.0,1.49665038]
[1752062974693,1.92251415,109240.0,109230.0,1.83665038]
[1752062974873,1.92251415,109240.0,109230.0,1.72693122]
[1752062975074,1.9133522,109240.0,109230.0,1.72693122]
[1752062975297,1.9133522,109240.0,109230.0,2.02543122]
[1752062975501,1.30230409,109240.0,109230.0,2.07543122]
[1752062975715,1.14430731,109240.0,109230.0,2.07543122]
[1752062975921,1.13514536,109240.0,109230.0,2.10743122]
[1752062976140,1.13514536,109240.0,109230.0,2.07543122]
[1752062976344,0.66145792,109240.0,109230.0,2.08997207]
[1752062976545,0.66145792,109240.0,109230.0,2.08795375]
[1752062976764,0.65229597,109240.0,109230.0,2.08795375]
[1752062976964,0.64313402,109240.0,109230.0,2.08795375]
[1752062977292,0.09319031,109240.0,109230.0,2.09295375]
[1752062977497,0.0502,109250.0,109240.0,0.58274456]
[1752062977680,0.05024651,109250.0,109240.0,2.0700848]
[1752062977883,0.0054394,109260.0,109250.0,0.5821253]
[1752062978099,0.0054394,109260.0,109250.0,1.43743784]
[1752062978735,0.0054394,109260.0,109250.0,1.43742028]
[1752062978983,0.0054394,109260.0,109250.0,1.46491928]
[1752062979614,0.0054394,109260.0,109250.0,1.16265431]
[1752062979830,0.0054394,109260.0,109250.0,1.46491928]
[1752062980545,0.0054394,109260.0,109250.0,1.46895928]
[1752062982527,0.0054394,109260.0,109250.0,1.46894477]
[1752062984617,0.0054394,109260.0,109250.0,1.46894335]
[1752062986596,0.0054394,109260.0,109250.0,1.32718335]
[1752062987237,0.0054394,109260.0,109250.0,1.35460111]
[1752062987415,0.0054394,109260.0,109250.0,1.35459992]
[1752062987668,0.0054394,109260.0,109250.0,1.21303992]
[1752062987869,0.0054394,109260.0,109250.0,1.27233429]
[1752062988400,0.0054394,109260.0,109250.0,1.35445057]
[1752062988610,0.0054394,109260.0,109250.0,1.35441057]
[1752062990123,0.0054394,109260.0,109250.0,1.35440843]
[1752062992560,0.0054394,109260.0,109250.0,1.27229215]
[1752062992993,0.0054394,109260.0,109250.0,1.27229267]
[1752062993869,0.0054394,109260.0,109250.0,0.9700277]
[1752062994132,0.0054394,109260.0,109250.0,1.27229267]
[1752062994336,0.22535836,109270.0,109260.0,0.24120602]
[1752062994543,0.22540487,109270.0,109260.0,0.82236039]
[1752062994753,0.0002,109290.0,109260.0,0.82236039]
[1752062994959,0.07349901,109310.0,109260.0,1.16236039]
[1752062995186,0.1691402,109360.0,109260.0,1.16236039]
[1752062995451,0.04109419,109390.0,109380.0,0.05]
[1752062995698,0.00010074,109430.0,109420.0,0.29192095]
[1752062995699,0.29053178,109430.0,109420.0,0.29192095]
[1752062995927,0.29945701,109430.0,109420.0,0.35163498]
[1752062996160,0.60172198,109430.0,109420.0,0.3764398]
[1752062996387,0.29138598,109430.0,109420.0,0.42643997]
[1752062996622,0.59778871,109430.0,109420.0,0.31638822]
[1752062996846,0.96932826,109430.0,109420.0,0.05]
[1752062997088,1.40076519,109430.0,109420.0,0.03259813]
[1752062997318,1.40076519,109430.0,109420.0,0.00629813]
[1752062997557,0.19192087,109420.0,109410.0,0.04087846]
[1752062997802,1.02296108,109420.0,109410.0,0.05780824]
[1752062998034,1.31636108,109420.0,109410.0,0.06692978]
[1752062998273,1.77715164,109420.0,109410.0,0.01692978]
[1752062998724,0.5410963,109400.0,109390.0,0.16229692]
[1752062998945,1.04334544,109400.0,109390.0,0.16229692]
[1752062999199,1.2262193,109400.0,109390.0,0.07141846]
[1752062999413,1.13478237,109400.0,109390.0,0.05745617]
[1752062999630,1.13478237,109400.0,109390.0,0.01690999]
[1752063000336,0.92685323,109400.0,109390.0,0.01690999]
[1752063000567,0.92685323,109400.0,109380.0,0.09054618]
[1752063000568,0.53197349,109390.0,109380.0,0.05]
[1752063000838,0.78309806,109390.0,109380.0,0.10744338]
[1752063001103,0.61854853,109390.0,109380.0,0.24974598]
[1752063001351,0.28768913,109390.0,109380.0,0.31803076]
[1752063001645,0.2785477,109390.0,109380.0,0.31803076]
[1752063001831,0.25159026,109390.0,109380.0,0.42775164]
[1752063002054,0.00046569,109390.0,109380.0,0.48399782]
[1752063002270,0.00046569,109390.0,109380.0,0.50009782]
[1752063002493,0.25159026,109390.0,109380.0,0.50009782]
[1752063002666,0.00146569,109390.0,109380.0,0.5084247]
[1752063003115,0.00146569,109390.0,109380.0,0.60838808]
[1752063003273,0.00146569,109390.0,109380.0,0.75594808]
[1752063003485,0.00146569,109390.0,109380.0,0.76991037]
[1752063003920,0.00146569,109390.0,109380.0,1.00188749]
[1752063004138,0.00146569,109390.0,109380.0,0.94737902]
[1752063004352,0.00046569,109390.0,109380.0,0.94737902]
[1752063004783,0.04573709,109430.0,109410.0,0.14977877]
[1752063004784,0.14776,109420.0,109410.0,0.14977877]
[1752063004978,0.54264091,109430.0,109420.0,0.18278194]
[1752063005177,0.27863213,109430.0,109420.0,0.41763539]
[1752063005382,0.27863213,109430.0,109420.0,0.4084968]
[1752063005572,0.57427213,109430.0,109420.0,0.42677407]
[1752063005774,0.02750756,109430.0,109420.0,0.42677407]
[1752063005980,0.25117113,109430.0,109420.0,0.52348123]
[1752063006199,4.656e-05,109430.0,109420.0,0.52348123]
[1752063006631,4.656e-05,109430.0,109420.0,0.5326199]
[1752063006859,0.25117113,109430.0,109420.0,0.53247865]
[1752063008651,4.656e-05,109430.0,109420.0,0.53247865]
[1752063008863,0.25117113,109430.0,109420.0,0.53247865]
[1752063009321,0.25517113,109430.0,109420.0,0.53247865]
[1752063009506,0.25517113,109430.0,109420.0,0.56474024]
[1752063009700,0.25117113,109430.0,109420.0,0.56474024]
[1752063009903,4.656e-05,109430.0,109420.0,0.56474024]
[1752063010105,0.25417113,109430.0,109420.0,0.56474024]
[1752063011092,0.25417113,109430.0,109420.0,0.71370024]
[1752063011316,0.00304656,109430.0,109420.0,0.71370024]
[1752063011539,0.25417113,109430.0,109420.0,0.56474024]
[1752063016827,0.00304656,109430.0,109420.0,0.56474024]
[1752063017037,0.25417113,109430.0,109420.0,0.56474024]
[1752063017248,0.00304656,109430.0,109420.0,0.56474024]
[1752063017446,0.00304656,109430.0,109420.0,0.48397433]
[1752063018242,0.00304656,109430.0,109420.0,0.59368208]
[1752063019066,0.26194738,109440.0,109430.0,0.29187899]
[1752063019285,0.26194738,109440.0,109430.0,0.64507888]
[1752063019716,0.27108422,109440.0,109430.0,0.64507888]
[1752063019959,0.02909656,109440.0,109430.0,0.58756588]
[1752063020184,0.27108413,109440.0,109430.0,0.66833078]
[1752063020414,0.00168614,109440.0,109430.0,0.69727363]
[1752063020651,0.01082281,109440.0,109430.0,0.69727363]
[1752063020874,0.25281071,109440.0,109430.0,0.69727363]
[1752063021128,0.26194738,109440.0,109430.0,0.69727363]
[1752063021348,0.02749635,109450.0,109440.0,0.24188595]
[1752063021554,0.27862092,109450.0,109440.0,0.29733591]
[1752063021770,0.26034766,109450.0,109440.0,0.29733591]
[1752063021994,0.26034757,109450.0,109440.0,0.58035234]
[1752063022203,0.27861966,109450.0,109440.0,0.49658443]
[1752063022360,0.27861966,109450.0,109440.0,0.6044895]
[1752063022570,0.29075608,109450.0,109440.0,0.5953525]
[1752063022762,0.29989258,109450.0,109440.0,0.60448967]
[1752063022955,0.29989258,109450.0,109440.0,0.61362676]
[1752063023156,0.27861966,109450.0,109440.0,0.48744718]
[1752063023358,0.28042608,109450.0,109440.0,0.56829852]
[1752063023563,0.29869883,109450.0,109440.0,0.72619586]
[1752063023779,0.01113617,109450.0,109440.0,0.75360704]
[1752063023983,0.27139658,109450.0,109440.0,0.75360704]
[1752063024186,0.26226049,109450.0,109440.0,0.64534394]
[1752063024389,0.02027209,109450.0,109440.0,0.78245081]
[1752063024624,0.02027193,109450.0,109440.0,0.78245081]
[1752063024852,0.2713965,109450.0,109440.0,0.78245081]
[1752063025051,0.002,109450.0,109440.0,0.78245081]
[1752063025468,0.001475,109460.0,109450.0,0.34174059]
[1752063025693,0.001475,109460.0,109450.0,0.62440781]
[1752063025893,0.25259957,109460.0,109450.0,0.48862748]
[1752063026092,0.02655991,109470.0,109460.0,0.2913214]
[1752063026291,0.02655991,109470.0,109460.0,0.86729517]
[1752063026292,0.02669935,109470.0,109460.0,0.86729517]
[1752063026521,0.27782392,109470.0,109460.0,0.86729517]
[1752063026933,0.2869585,109470.0,109460.0,0.85816]
[1752063027108,0.46965795,109470.0,109460.0,0.69112891]
[1752063027262,0.46965795,109470.0,109460.0,0.70026466]
[1752063027465,0.46965795,109470.0,109460.0,0.70940025]
[1752063027661,0.46965795,109470.0,109460.0,0.69112891]
[1752063027904,0.21853338,109470.0,109460.0,0.70026466]
[1752063028107,0.46965795,109470.0,109460.0,0.50841377]
[1752063028332,0.46052337,109470.0,109460.0,0.50841377]
[1752063028534,0.46052337,109470.0,109460.0,0.69112891]
[1752063028758,0.46152337,109470.0,109460.0,0.69112891]
[1752063028941,0.4523887,109470.0,109460.0,0.69112891]
[1752063029565,0.4523887,109470.0,109460.0,0.70940025]
[1752063029740,0.03683402,109470.0,109460.0,0.727671]
[1752063029951,0.03683393,109470.0,109460.0,0.73680617]
[1752063030163,0.02769935,109470.0,109460.0,0.73680617]
[1752063030519,0.2879585,109470.0,109460.0,0.73680617]
[1752063030753,0.04596868,109470.0,109460.0,0.70170288]
[1752063030931,0.04596868,109470.0,109460.0,0.66546854]
[1752063031143,0.0459686,109470.0,109460.0,0.67460396]
[1752063031358,0.0459686,109470.0,109460.0,0.76522618]
[1752063031561,0.0459686,109470.0,109460.0,0.72010132]
[1752063031767,0.05510343,109470.0,109460.0,0.71100615]
[1752063031905,0.05510343,109470.0,109460.0,0.7201414]
[1752063031906,0.306228,109470.0,109460.0,0.7201414]
[1752063032152,0.05510343,109470.0,109460.0,0.56204615]
[1752063032353,0.0459686,109470.0,109460.0,0.71100615]
[1752063032572,0.03683393,109470.0,109460.0,0.72014132]
[1752063032822,0.04596868,109470.0,109460.0,0.71100615]
[1752063032993,0.05510351,109470.0,109460.0,0.7201414]
[1752063033179,0.00943076,109470.0,109460.0,0.7201414]
[1752063033386,0.01856493,109470.0,109460.0,0.63865394]
[1752063033815,0.01856493,109470.0,109460.0,0.63865714]
[1752063034676,0.00943076,109470.0,109460.0,0.63865714]
[1752063035861,0.39731794,109500.0,109490.0,0.28579684]
[1752063036067,0.39731794,109500.0,109490.0,0.49874779]
[1752063036068,0.73731794,109500.0,109490.0,0.49874779]
[1752063036243,0.74645019,109500.0,109490.0,0.52220961]
[1752063036415,0.72818619,109500.0,109490.0,0.53133665]
[1752063036624,0.3607902,109500.0,109490.0,0.54046941]
[1752063036835,0.3607902,109500.0,109490.0,0.63190634]
[1752063037501,0.3607902,109500.0,109490.0,0.73186972]
[1752063037704,0.3607902,109500.0,109490.0,0.58154972]
[1752063037911,0.3607902,109500.0,109490.0,0.73294972]
[1752063038314,0.3607902,109500.0,109490.0,0.8060792]
[1752063038534,0.3607902,109500.0,109490.0,0.73294972]
[1752063038739,0.3607902,109500.0,109490.0,0.73290972]
[1752063038957,0.3617902,109500.0,109490.0,0.73290972]
[1752063039158,0.35264566,109500.0,109490.0,0.73290972]
[1752063039601,0.34250112,109500.0,109490.0,0.73290972]
[1752063039811,0.34250112,109500.0,109490.0,0.82998523]
[1752063040019,0.33335658,109500.0,109490.0,0.77565637]
[1752063040237,0.33335658,109500.0,109490.0,0.73490972]
[1752063040445,0.32421204,109500.0,109490.0,0.73490972]
[1752063040654,0.32421204,109500.0,109490.0,0.8080392]
[1752063040865,0.32421204,109500.0,109490.0,0.73490972]
[1752063040866,0.3150675,109500.0,109490.0,0.73490972]
[1752063041080,0.3150675,109500.0,109490.0,0.77565637]
[1752063041293,0.30592296,109500.0,109490.0,0.8299052]
[1752063041716,0.29677842,109500.0,109490.0,0.8299052]
[1752063041930,0.28763757,109500.0,109490.0,0.77557634]
[1752063042353,0.27849672,109500.0,109490.0,0.77557634]
[1752063042561,0.27849672,109500.0,109490.0,1.09124176]
[1752063042787,0.26935587,109500.0,109490.0,0.85377943]
[1752063043001,0.26935587,109500.0,109490.0,0.8400956]
[1752063043219,0.26021502,109500.0,109490.0,0.953544]
[1752063043420,0.26021502,109500.0,109490.0,0.89500864]
[1752063043648,0.26020583,109500.0,109490.0,0.68871978]
[1752063043912,0.26933766,109500.0,109490.0,0.84063978]
[1752063044119,0.26932872,109500.0,109490.0,0.60591342]
[1752063044334,0.44284605,109500.0,109490.0,0.35498209]
[1752063044542,0.69397062,109500.0,109490.0,0.50690209]
[1752063044728,0.44284605,109500.0,109490.0,0.51627288]
[1752063045169,0.69397062,109500.0,109490.0,0.31435288]
[1752063045377,0.44284605,109500.0,109490.0,0.43427288]
[1752063045580,0.44284605,109500.0,109490.0,0.28235288]
[1752063045714,0.69397062,109500.0,109490.0,0.24091595]
[1752063045921,0.69397062,109500.0,109490.0,0.19091595]
[1752063046114,1.03397062,109500.0,109490.0,0.05835783]
[1752063048678,0.78284605,109500.0,109490.0,0.05835783]
[1752063048881,1.03397062,109500.0,109490.0,0.05635783]
[1752063050342,1.12540755,109500.0,109490.0,0.05635783]
[1752063050543,0.78484605,109500.0,109490.0,0.05635783]
[1752063050756,1.03597062,109500.0,109490.0,0.05635783]
[1752063050970,1.03397062,109500.0,109490.0,0.05635783]
[1752063051436,1.03597062,109500.0,109490.0,0.05635783]
[1752063052092,0.93704605,109500.0,109490.0,0.05635783]
[1752063052304,1.27960755,109500.0,109490.0,0.05635783]
[1752063055775,1.12740755,109500.0,109490.0,0.05635783]
[1752063055892,1.27932755,109500.0,109490.0,0.05635783]
[1752063056121,0.1918332,109470.0,109460.0,0.14495807]
[1752063056337,0.42490633,109470.0,109460.0,0.25522912]
[1752063056555,0.18291651,109470.0,109460.0,0.25522912]
[1752063056922,0.18291651,109470.0,109460.0,0.55522912]
[1752063057326,0.18291651,109470.0,109460.0,0.50522912]
[1752063057478,0.18291651,109470.0,109460.0,0.55522912]
[1752063057659,0.18291651,109470.0,109460.0,0.25522912]
[1752063057868,0.18291651,109470.0,109460.0,0.25722912]
[1752063058410,0.18291651,109470.0,109460.0,0.20722912]
[1752063058621,0.18291651,109470.0,109460.0,0.25722912]
[1752063058812,0.18291651,109470.0,109460.0,0.20722912]
[1752063059190,0.19205118,109470.0,109460.0,0.25722912]
[1752063059389,0.19205118,109470.0,109460.0,0.20722912]
[1752063059797,0.19205118,109470.0,109460.0,0.43994426]
[1752063060024,0.49505543,109480.0,109470.0,0.22443328]
[1752063060224,0.51332277,109480.0,109470.0,0.25706981]
[1752063060424,0.50418935,109480.0,109470.0,0.29793498]
[1752063060613,0.01826709,109480.0,109470.0,0.31620473]
[1752063060812,0.01826709,109480.0,109470.0,0.33447398]
[1752063060813,0.17892084,109480.0,109470.0,0.33447398]
[1752063061015,0.18805476,109480.0,109470.0,0.34360848]
[1752063061242,0.19718884,109480.0,109470.0,0.3253394]
[1752063061464,0.17908134,109480.0,109470.0,0.33447382]
[1752063061639,0.16994742,109480.0,109470.0,0.33447382]
[1752063061902,0.3617631,109480.0,109470.0,0.32533948]
[1752063062302,0.3617631,109480.0,109470.0,0.31620473]
[1752063062529,0.59462025,109480.0,109470.0,0.11523653]
[1752063062763,0.59462025,109480.0,109470.0,0.08263653]
[1752063063022,0.44294025,109480.0,109470.0,0.08263653]
[1752063063238,0.59462025,109480.0,109470.0,0.08263653]
[1752063063449,0.34349568,109480.0,109470.0,0.08263653]
[1752063063674,0.59462025,109480.0,109470.0,0.08263653]
[1752063064123,0.43378965,109490.0,109470.0,0.2899694]
[1752063064348,0.36158408,109490.0,109480.0,0.23268176]
[1752063064557,0.35245133,109490.0,109480.0,0.05]
[1752063065413,0.6045759,109490.0,109480.0,0.08263934]
[1752063066304,0.6045759,109490.0,109480.0,0.05]
[1752063067264,0.69593283,109490.0,109480.0,0.05]
[1752063067489,0.69493283,109490.0,109480.0,0.05]
[1752063067744,0.6034959,109490.0,109480.0,0.05]
[1752063067961,0.4530559,109490.0,109480.0,0.05]
[1752063068180,0.6044559,109490.0,109480.0,0.05637299]
[1752063069476,0.35333133,109490.0,109480.0,0.05637299]
[1752063069728,0.6044559,109490.0,109480.0,0.05637299]
[1752063070210,0.69589283,109490.0,109480.0,0.05637299]
[1752063070413,0.6044559,109490.0,109480.0,0.05637299]
[1752063072331,0.6043759,109490.0,109480.0,0.05637299]
[1752063072717,0.20193133,109490.0,109480.0,0.05637299]
[1752063073020,0.35329133,109490.0,109480.0,0.08777299]
[1752063073442,0.6044159,109490.0,109480.0,0.08777299]
[1752063074802,0.4530559,109490.0,109480.0,0.08777299]
[1752063075045,0.6044159,109490.0,109480.0,0.08777299]
[1752063076474,0.9444159,109490.0,109480.0,0.08777299]
[1752063076802,0.9444159,109490.0,109480.0,0.08778723]
[1752063077223,0.6942559,109490.0,109480.0,0.08778723]
[1752063077424,0.87692098,109490.0,109480.0,0.08778723]
[1752063077543,0.87692098,109490.0,109480.0,0.05638723]
[1752063078995,0.67386508,109490.0,109480.0,0.05638723]
[1752063079216,0.92498965,109490.0,109480.0,0.05638723]
[1752063080211,0.92486965,109490.0,109480.0,0.05638723]
[1752063082081,0.67374508,109490.0,109480.0,0.05638723]
[1752063082241,0.92486965,109490.0,109480.0,0.07158723]
[1752063082440,0.67354508,109490.0,109480.0,0.27007133]
[1752063082726,0.67354508,109490.0,109480.0,0.08738957]
[1752063083357,0.68267833,109490.0,109480.0,0.27920541]
[1752063083509,0.67354508,109490.0,109480.0,0.27007133]
[1752063083900,0.67354508,109490.0,109480.0,0.08738957]
[1752063084225,0.27987542,109500.0,109490.0,0.29999692]
[1752063084388,0.27987542,109500.0,109490.0,0.54870342]
[1752063084588,0.27987542,109500.0,109490.0,0.81675435]
[1752063084927,0.27987542,109500.0,109490.0,1.06811663]
[1752063085121,0.27987542,109500.0,109490.0,1.02724971]
[1752063085369,0.27987542,109500.0,109490.0,0.68040998]
[1752063085579,0.29813917,109500.0,109490.0,0.66214398]
[1752063085788,0.29813917,109500.0,109490.0,0.6712769]
[1752063085993,0.48991982,109500.0,109490.0,0.6712769]
[1752063086128,0.48992049,109500.0,109490.0,0.66214398]
[1752063086323,0.48992049,109500.0,109490.0,0.68041006]
[1752063087147,0.48078849,109500.0,109490.0,0.68041006]
[1752063087360,0.48078849,109500.0,109490.0,0.68241006]
[1752063087575,0.48078849,109500.0,109490.0,0.69154298]
[1752063087795,0.71364839,109500.0,109490.0,0.32142573]
[1752063088020,0.71364839,109500.0,109490.0,0.27142573]
[1752063088228,0.71364839,109500.0,109490.0,0.13002542]
[1752063088431,0.86452839,109500.0,109490.0,0.13002542]
[1752063088655,0.86452839,109500.0,109490.0,0.08918957]
[1752063088865,0.86452839,109500.0,109490.0,0.08718957]
[1752063090374,0.86452839,109500.0,109490.0,0.08818957]
[1752063090953,1.29596532,109500.0,109490.0,0.00738957]
[1752063091644,1.20452839,109500.0,109490.0,0.00638957]
[1752063094491,1.05364839,109500.0,109490.0,0.00638957]
[1752063094736,0.80252382,109500.0,109490.0,0.02298957]
[1752063094944,0.95292382,109500.0,109490.0,0.03828957]
[1752063095280,1.20404839,109500.0,109490.0,0.03828957]
[1752063095697,1.28092547,109500.0,109490.0,0.03828957]
[1752063096298,1.28088547,109500.0,109490.0,0.03828957]
[1752063096933,1.0297609,109500.0,109490.0,0.03828203]
[1752063097150,1.28088547,109500.0,109490.0,0.03828203]
[1752063098212,1.13052547,109500.0,109490.0,0.03828203]
[1752063098340,1.28076547,109500.0,109490.0,0.03828203]
[1752063098989,0.95276382,109500.0,109490.0,0.03828203]
[1752063099191,1.20388839,109500.0,109490.0,0.03828203]
[1752063103098,0.95276382,109500.0,109490.0,0.03828203]
[1752063103306,1.20388839,109500.0,109490.0,0.03828203]
[1752063106110,1.05364839,109500.0,109490.0,0.03828203]
[1752063106318,1.20368839,109500.0,109490.0,0.03828203]
[1752063107800,1.20364839,109500.0,109490.0,0.03828203]
[1752063108309,0.95252382,109500.0,109490.0,0.03828203]
[1752063108598,0.80252382,109500.0,109490.0,0.03828203]
[1752063108818,0.28900725,109500.0,109490.0,0.37147535]
[1752063109026,0.27987542,109500.0,109490.0,0.37147535]
[1752063109240,0.27987542,109500.0,109490.0,0.51228224]
[1752063109666,0.27987542,109500.0,109490.0,0.66320224]
[1752063109846,0.27987542,109500.0,109490.0,0.66318901]
[1752063110079,0.27987542,109500.0,109490.0,0.75462594]
[1752063110289,0.27987542,109500.0,109490.0,0.75562594]
[1752063110709,0.27987542,109500.0,109490.0,0.75462594]
[1752063111137,0.27987542,109500.0,109490.0,0.78201629]
[1752063111345,0.27987542,109500.0,109490.0,0.70888681]
[1752063111552,0.27987542,109500.0,109490.0,0.72479075]
[1752063111730,0.27987542,109500.0,109490.0,0.71088681]
[1752063113383,0.27987542,109500.0,109490.0,0.67005653]
[1752063113538,0.27987542,109500.0,109490.0,0.71088666]
[1752063114177,0.27987542,109500.0,109490.0,0.76520884]
[1752063115457,0.28900708,109500.0,109490.0,0.76520884]
[1752063115664,0.27987542,109500.0,109490.0,0.76520884]
[1752063116494,0.28900708,109500.0,109490.0,0.76520884]
[1752063116746,0.28900717,109500.0,109490.0,0.76520884]
[1752063116925,0.27987542,109500.0,109490.0,0.76520884]
[1752063117292,0.27987542,109500.0,109490.0,1.07881254]
[1752063117493,0.27987542,109500.0,109490.0,1.03798909]
[1752063117853,0.27987542,109500.0,109490.0,1.04635291]
[1752063118192,0.27987542,109500.0,109490.0,0.96485961]
[1752063118803,0.27804702,109500.0,109490.0,0.96485961]
[1752063119390,0.27804702,109500.0,109490.0,0.72438411]
[1752063119612,0.27804702,109500.0,109490.0,0.96485961]
[1752063119839,0.27804702,109500.0,109490.0,1.00565666]
[1752063120060,0.27804702,109500.0,109490.0,1.00565566]
[1752063120670,0.27804702,109500.0,109490.0,0.76518016]
[1752063120880,0.27804702,109500.0,109490.0,1.00565566]
[1752063121767,0.27804702,109500.0,109490.0,0.72438311]
[1752063121961,0.27804702,109500.0,109490.0,0.96485833]
[1752063123181,0.27804702,109500.0,109490.0,1.00564141]
[1752063123952,0.27804702,109500.0,109490.0,0.76516591]
[1752063124158,0.27804702,109500.0,109490.0,1.00564141]
[1752063124357,0.27804702,109500.0,109490.0,1.00885077]
[1752063124557,0.27804702,109500.0,109490.0,0.72438283]
[1752063124763,0.27804702,109500.0,109490.0,0.96485833]
[1752063125310,0.27804702,109500.0,109490.0,0.72438283]